[Event "SixDays Budapest March GM-B 2023"]
[Site "Budapest"]
[Date "2023.03.28"]
[Round "8.3"]
[White "Swayams, Mishra"]
[Black "Royal, Shreyas"]
[Result "1/2-1/2"]
[ECO "D41"]
[WhiteElo "2489"]
[BlackElo "2452"]
[Annotator "TA"]
[PlyCount "137"]
[EventDate "2023.03.24"]
[EventType "tourn"]
[EventCountry "HUN"]
[SourceTitle "playchess.com"]
[Source "ChessBase"]
[SourceQuality "1"]
[TimeControl "5400+30"]

{[%evp 20,137,4,1,0,0,6,12,27,0,22,8,35,9,27,23,109,109,108,114,113,98,74,79,176,157,188,195,156,137,262,243,796,766,782,53,39,0,208,192,204,200,160,181,132,0,0,0,0,0,0,0,0,0,0,0,0,0,0,0,0,0,0,0,0,0,0,0,0,0,0,0,0,0,0,0,0,0,0,0,0,0,0,0,0,0,0,0,0,0,0,0,0,0,0,0,0,0,0,0,0,0,0,0,0,0,0,0,0,0,0,0,0,0,0,0,0,0,0,0]} 1. d4 {[%emt 0:12:22]} Nf6 {[%emt 0:00:38]} 2. Nf3 {[%emt 0:00:30]} d5 {[%emt 0:00:13]} 3. c4 {[%emt 0:00:19]} e6 {[%emt 0:00:09]} 4. Nc3 {[%emt 0:00:08]} c5 {[%emt 0:00:06]} 5. cxd5 {[%emt 0:00:12]} Nxd5 {[%emt 0:00:08]} 6. e4 Nxc3 {[%emt 0:00:06]} 7. bxc3 {[%emt 0:01:15]} cxd4 {[%emt 0:00:10]} 8. cxd4 {[%emt 0:00:05]} Bb4+ {[%emt 0:00:06]} 9. Bd2 {[%emt 0:00:10]} Bxd2+ {[%emt 0:00:05]} 10. Qxd2 {[%emt 0:00:05]} O-O {[%emt 0:00:09]} 11. Rc1 {[%emt 0:04:12]} b6 {[%emt 0:00:54] D41: Queen's Gambit Declined: Semi-Tarrasch with 5 cxd5.} 12. Bd3 {[%emt 0:00:38]} Bb7 {[%emt 0:01:51]} 13. O-O {[%emt 0:00:36]} Nc6 {[%emt 0:00:10]} 14. Bb1 {[%emt 0:02:49]} Qe7 {[%emt 0:03:47] [#]} 15. Rfd1 $146 {[%emt 0:02:42]} ({Predecessor:} 15. e5 Nb4 16. Ng5 h6 17. Ne4 Bxe4 18. Bxe4 Rad8 19. f4 f5 20. exf6 Rxf6 21. Bb1 {0-1 Klekowski,M (2432)-Dragun,K (2594) POL-ch Poznan 2016 (8)}) 15... Rfd8 {[%emt 0:01:29]} 16. Qf4 {[%emt 0:05:57] next d5 is good for White.} Na5 {[%emt 0:20:44]} 17. Rc7 {[%emt 0:03:47]} Qf6 {[%emt 0:01:26]} (17... Rd7 $1 $11 {keeps the balance.} 18. Rdc1 Rad8) 18. Qg3 $1 $16 {[%emt 0:12:18]} Rac8 {[%emt 0:07:27]} 19. e5 $40 {[%emt 0:00:30][%mdl 128] White has strong attack.} Qh6 {[%emt 0:00:15]} 20. Rxc8 {[%emt 0:00:18]} Rxc8 {[%emt 0:00:31]} 21. Ng5 {[%emt 0:00:42][%cal Bf3g5,Bg5h7,Bh7f6][%mdl 32]} Qh5 {[%emt 0:08:10]} (21... g6 $16) 22. f3 $1 $18 {[%emt 0:11:29]} h6 {[%emt 0:00:55]} 23. Nh7 {[%emt 0:07:24]} Kh8 {[%emt 0:00:06]} 24. Qf4 $1 {[%emt 0:00:58]} Bd5 {[%emt 0:10:40]} (24... Nc6 $16) 25. h4 $1 {[%emt 0:00:53][%cal Oh7f6] Hoping for Nf6!} Nc6 $2 {[%emt 0:06:18] [#]} (25... f5 26. exf6 Qf7) 26. Nf6 $1 {[%emt 0:01:45][%mdl 512]} g5 {[%emt 0:00:56]} 27. Qe3 $2 {[%emt 0:01:13]} (27. Nxh5 gxf4 28. Nxf4 Nb4 $14) ({White should play} 27. Qc1 $18 Qxh4 28. Qc2) 27... Qxh4 $14 {[%emt 0:00:07]} 28. Rc1 {[%emt 0:15:33]} (28. Qd3 Qxd4+ 29. Qxd4 Nxd4 30. Rxd4 (30. Nxd5 exd5 31. Rxd4 Rc1+ 32. Kh2 Rxb1 $17) 30... Rc1+ 31. Kh2 Rxb1 32. Nxd5 exd5 33. Rxd5 a5 $17) 28... Kg7 $2 {[%emt 0:02:39]} (28... Ne7 $1 $11 29. Rxc8+ Nxc8) 29. Nxd5 $1 $18 {[%emt 0:02:46]} (29. Qd3 Kf8 $11) 29... exd5 {[%emt 0:00:06] [#]} 30. Bf5 $1 {[%emt 0:00:04]} Rc7 {[%emt 0:00:12] [#]} 31. e6 $1 {[%emt 0:00:50]} fxe6 {[%emt 0:01:03]} 32. Bxe6 {[%emt 0:05:55]} ({White has to play} 32. Qxe6 $16 {Qg6+ would be deadly.} Qxd4+ 33. Kf1) 32... Qg3 $11 {[%emt 0:00:27] The position is equal.} 33. Bxd5 {[%emt 0:00:17]} Ne7 {[%emt 0:01:46]} 34. Be4 {[%emt 0:01:39]} Rxc1+ {[%emt 0:01:09]} 35. Qxc1 {[%emt 0:00:01][%mdl 4096] Endgame KQB-KQN} Qd6 {[%emt 0:03:26]} 36. Qc4 b5 {[%emt 0:03:20]} 37. Qc3 {[%emt 0:03:07]} Nd5 {[%emt 0:01:03]} 38. Bxd5 {[%emt 0:00:19]} Qxd5 {[%emt 0:00:06] KQ-KQ} 39. Qc7+ Qf7 $1 {[%emt 0:04:23]} 40. Qe5+ {[%emt 0:00:10]} Qf6 {[%emt 0:03:09] White must now prevent ...Qxe5.} 41. Qc7+ {[%emt 0:00:02]} Qf7 {[%emt 0:00:07]} 42. Qe5+ {[%emt 0:00:08]} Qf6 {[%emt 0:00:03]} 43. Qc5 {[%emt 0:00:34]} a6 {[%emt 0:00:36]} 44. a3 {[%emt 0:01:07]} Qf4 {[%emt 0:03:20]} 45. d5 {[%emt 0:01:54]} Qe5 {[%emt 0:00:25]} 46. Qa7+ {[%emt 0:01:48]} Kg8 {[%emt 0:00:13]} 47. Qa8+ {[%emt 0:00:23]} Kg7 {[%emt 0:00:11]} 48. Qb7+ {[%emt 0:00:03]} Kg8 {[%emt 0:00:10]} 49. Qc8+ {[%emt 0:00:35]} Kg7 {[%emt 0:00:12]} 50. Qd7+ {[%emt 0:00:23]} Kf8 {[%emt 0:00:33]} 51. Qc8+ {[%emt 0:02:07]} Kg7 {[%emt 0:00:03]} 52. Qb7+ {[%emt 0:00:04]} Kg8 {[%emt 0:00:20]} 53. Kf2 {[%emt 0:01:32]} Qd4+ {[%emt 0:00:30]} 54. Ke2 {[%emt 0:00:02]} Qb2+ {[%emt 0:00:36]} 55. Kd3 {[%emt 0:00:36] Strongly threatening Ke4.} Qxa3+ {[%emt 0:00:05]} (55... Qxg2 56. d6 (56. Qxa6 Qxf3+ 57. Kd4 Qf2+ 58. Ke5 Qf4+ 59. Ke6 Qf7+ 60. Ke5 Qg7+ 61. Ke4 Qe7+ 62. Kf5 Qf8+ 63. Ke5 Qf4+ 64. Ke6 Qe3+ 65. Kd7 Kg7 $11) 56... Qa2 57. Kd4 (57. Qxa6 Qd5+ 58. Ke3 Qe5+ 59. Kd3 Qd5+ 60. Ke3 Qe5+ 61. Kd3 Qd5+ $11) 57... Qb2+ 58. Kd5 Qb3+ 59. Ke5 $18) 56. Ke4 {[%emt 0:00:23] Qd7 is the strong threat.} Qd6 {[%emt 0:03:54] Against Qd7} 57. Qc6 {[%emt 0:01:26] Active counter play!} Qf4+ {[%emt 0:00:05]} 58. Kd3 {[%emt 0:00:03]} Qc4+ {[%emt 0:02:48]} 59. Ke3 {[%emt 0:00:02]} Qf4+ {[%emt 0:00:09]} 60. Ke2 {[%emt 0:00:05]} Qc4+ {[%emt 0:00:27]} 61. Kf2 {[%emt 0:00:59]} ({Don't go for} 61. Qxc4 $2 bxc4 62. Kf2 a5 $19) 61... Qd4+ {[%emt 0:00:41]} 62. Ke2 {[%emt 0:00:05]} Qc4+ {[%emt 0:00:05]} 63. Ke1 {[%emt 0:00:09]} ({Don't blunder} 63. Qxc4 $2 bxc4 64. Kd2 Kf7 $19) 63... Qb4+ {[%emt 0:00:17]} 64. Kf1 {[%emt 0:01:33]} Qc4+ {[%emt 0:00:17]} 65. Kf2 {[%emt 0:00:23]} Qd4+ {[%emt 0:00:06]} 66. Ke2 {[%emt 0:00:03]} Qc4+ {[%emt 0:00:09]} 67. Ke3 {[%emt 0:00:10]} ({Not} 67. Qxc4 $2 bxc4 68. Ke3 Kf7 $19) 67... Qf4+ {[%emt 0:00:05]} 68. Kd3 {[%emt 0:00:04]} Qc4+ {[%emt 0:00:04]} 69. Ke3 {[%emt 0:01:58] Weighted Error Value: White=0.17 (very precise) /Black=0.19 (very precise)} 1/2-1/2

[Event "SixDays Budapest March GM-B 2023"]
[Site "Budapest"]
[Date "2023.03.28"]
[Round "8.4"]
[White "Ilincic, Zlatko"]
[Black "Pribelszky, Bence"]
[Result "1/2-1/2"]
[ECO "A56"]
[WhiteElo "2302"]
[BlackElo "2380"]
[Annotator "TA"]
[PlyCount "74"]
[EventDate "2023.03.24"]
[EventType "tourn"]
[EventCountry "HUN"]
[SourceTitle "playchess.com"]
[Source "ChessBase"]
[SourceQuality "1"]
[TimeControl "5400+30"]

{[%evp 19,74,-7,0,0,0,0,0,0,0,0,0,0,0,0,0,0,0,-5,0,-2,0,0,27,20,18,0,8,0,0,0,27,8,22,36,32,18,52,56,60,8,8,10,15,0,0,0,0,0,0,0,0,0,0,0,0,0,0]} 1. d4 {[%emt 0:00:34]} Nf6 {[%emt 0:00:35]} 2. c4 {[%emt 0:00:14]} c5 {[%emt 0:00:05]} 3. Nf3 {[%emt 0:00:22][%cal Bg1f3,Bf3d4,Bd4c2][%mdl 32]} cxd4 {[%emt 0:00:06]} 4. Nxd4 {[%emt 0:00:06]} e5 {[%emt 0:00:11]} 5. Nc2 {[%emt 0:00:24]} d5 {[%emt 0:04:56]} 6. cxd5 {[%emt 0:00:13]} Qxd5 {[%emt 0:02:52]} 7. Qxd5 {[%emt 0:00:13]} Nxd5 {[%emt 0:00:04]} 8. e4 {[%emt 0:00:15]} Nb4 {[%emt 0:00:41]} 9. Nxb4 {[%emt 0:00:21]} Bxb4+ {[%emt 0:00:07]} 10. Bd2 {[%emt 0:00:12]} Nc6 {[%emt 0:02:16]} 11. Bb5 {[%emt 0:01:04] A31: Symmetrical English: 2 Nf3 Nf6 3 d4.} Bd7 {[%emt 0:00:08]} 12. Bxc6 {[%emt 0:02:38]} Bxd2+ {[%emt 0:00:06]} 13. Kxd2 {[%emt 0:00:14]} Bxc6 {[%emt 0:00:04]} 14. Nc3 {[%emt 0:00:13]} O-O-O+ {[%emt 0:03:32]} 15. Ke2 {[%emt 0:00:47]} Rd4 {[%emt 0:01:17][%cal Oh8d8]} 16. f3 {[%emt 0:00:37] [#]} g6 $146 {[%emt 0:06:59]} ({Predecessor:} 16... Rhd8 17. Rhd1 g6 18. Rac1 f5 19. Rxd4 exd4 20. Nd5 fxe4 21. fxe4 Kd7 22. Kd3 Ke6 {½-½ Andersson,U (2599)-Langheinrich,F (2363) Bundesliga 0203 2002 (7.3)}) 17. Rhd1 {[%emt 0:00:31]} f5 {[%emt 0:06:29]} 18. Rd2 {[%emt 0:03:01]} fxe4 {[%emt 0:12:06]} 19. fxe4 {[%emt 0:00:19]} Rf8 {[%emt 0:04:35]} 20. Rad1 {[%emt 0:00:30]} Rb4 {[%emt 0:00:32]} (20... Bxe4 $2 21. Rxd4 $18) 21. a3 {[%emt 0:03:31]} Rb3 {[%emt 0:14:31]} 22. Kd3 {[%emt 0:10:51]} (22. Rc2 $5 {[%cal Rd1d6]}) 22... a5 {[%emt 0:12:05]} 23. Kc2 {[%emt 0:02:38]} a4 {[%emt 0:00:12]} 24. Re2 {[%emt 0:05:19]} Rf4 {[%emt 0:01:56]} 25. Rd3 {[%emt 0:07:41]} b5 {[%emt 0:02:31]} 26. Rd6 {[%emt 0:04:01]} Kc7 {[%emt 0:05:58]} 27. Re6 {[%emt 0:00:09]} Rh4 {[%emt 0:00:25]} 28. g3 {[%emt 0:01:00]} Rh5 {[%emt 0:00:16]} 29. h4 {[%emt 0:06:44]} (29. Re7+ $14 Kb6 30. Re6) 29... b4 $11 {[%emt 0:01:01] The position is equal.} 30. axb4 {[%emt 0:01:10]} Rxb4 {[%emt 0:00:02]} 31. Nd5+ {[%emt 0:06:39]} Bxd5 {[%emt 0:00:07]} 32. exd5 {[%emt 0:00:05][%mdl 4096] Endgame KRR-KRR} Rc4+ {[%emt 0:10:04]} 33. Kb1 {[%emt 0:00:09]} Rd4 {[%emt 0:00:33]} 34. R2xe5 {[%emt 0:01:53]} Rxe5 {[%emt 0:00:25]} 35. Rxe5 {[%emt 0:00:22]} Kd6 {[%emt 0:00:04][%csl LRd5,LRe5] Wards off Re7} 36. Re6+ {[%emt 0:01:27]} Kxd5 {[%emt 0:00:12]} 37. Re7 {[%emt 0:00:06]} Rg4 {[%emt 0:00:57] Weighted Error Value: White=0.07 (flawless) /Black=0.06 (flawless)} 1/2-1/2

[Event "SixDays Budapest March GM-B 2023"]
[Site "Budapest"]
[Date "2023.03.28"]
[Round "8.5"]
[White "Moksh Amit Doshi"]
[Black "Varga, Csaba Zoltan"]
[Result "1-0"]
[ECO "D21"]
[WhiteElo "2388"]
[BlackElo "2278"]
[Annotator "TA"]
[PlyCount "47"]
[EventDate "2023.03.24"]
[EventType "tourn"]
[EventCountry "HUN"]
[SourceTitle "playchess.com"]
[Source "ChessBase"]
[SourceQuality "1"]
[TimeControl "5400+30"]

{[%evp 10,47,22,26,15,17,30,35,40,54,100,73,72,82,70,64,107,21,103,107,105,67,84,87,151,166,179,175,210,151,455,437,445,431,764,773,969,595,1325,1297]} 1. d4 {[%emt 0:05:33]} d5 {[%emt 0:04:05][%cal Bd7d5,Bd5c4][%mdl 32]} 2. c4 {[%emt 0:01:04]} dxc4 {[%emt 0:03:23]} 3. Nf3 {[%emt 0:01:31]} c5 {[%emt 0:00:32]} 4. d5 {[%emt 0:05:42]} e6 {[%emt 0:00:04]} 5. e4 {[%emt 0:02:01]} exd5 6. exd5 {[%emt 0:00:08]} Bd6 {[%emt 0:00:29] D21: Queen's Gambit Accepted: 3 Nf3 sidelines.} 7. Bxc4 {[%emt 0:00:16]} Bg4 {[%emt 0:03:32]} 8. O-O {[%emt 0:04:02] [#]} Nd7 $146 {[%emt 0:00:52] White is slightly better.} ({Predecessor:} 8... Ne7 9. Re1 O-O 10. Bg5 f6 {½-½ Petrisor,A-Stangaciu,O ROM-ch sf U10 2002 (9)}) 9. Nc3 {[%emt 0:01:57]} Ne5 {[%emt 0:09:00]} (9... Ne7 $14 {deserves consideration.}) 10. Bb5+ {[%emt 0:01:35]} Kf8 {[%emt 0:00:14]} 11. Be2 $36 {[%emt 0:00:54][%mdl 2048] Nxe5 would be deadly. Black is under strong pressure.} Bxf3 {[%emt 0:05:35]} 12. Bxf3 {[%emt 0:00:33]} (12. gxf3 Qh4 13. f4 Ng6 $17) 12... h5 {[%emt 0:01:39] [#]} 13. Re1 {[%emt 0:03:33]} (13. Bxh5 $2 Qh4 14. h3 Qxh5 $19) (13. Ne4 $1 $16) 13... Nf6 {[%emt 0:03:36]} (13... Qf6 $11 {keeps the balance.}) 14. h3 {[%emt 0:05:42]} c4 {[%emt 0:04:58]} 15. Bg5 {[%emt 0:02:36]} Nd3 {[%emt 0:02:08]} 16. Re2 {[%emt 0:04:54]} Be5 {[%emt 0:13:58]} (16... Bc7 $142) 17. Qa4 $16 {[%emt 0:05:34]} Qb6 {[%emt 0:09:57]} 18. Rd1 {[%emt 0:06:58][%cal Od1d3] Rxd3! is the strong threat.} (18. Qxc4 Nxb2 19. Qb3 Qxb3 20. axb3 Bxc3 $15) 18... Re8 {[%emt 0:08:45]} 19. Rdd2 {[%emt 0:08:43]} (19. Qxc4 Nxb2 20. Rxb2 Qxb2 $14) 19... Ng4 $2 {[%emt 0:06:27] Loses the game.} (19... Qa6 $16 {is more resistant.}) 20. Bxg4 $18 {[%emt 0:08:45] White is clearly winning.} (20. hxg4 hxg4 21. Rxd3 (21. Bxg4 Bh2+ 22. Kh1 Nxf2+ {[%mdl 64] Deflection, Back Rank} 23. Rxf2 Re1+) 21... cxd3 $16) 20... hxg4 {[%emt 0:00:18]} 21. Qxc4 {[%emt 0:00:11]} Nc1 {[%emt 0:06:52]} (21... Nxf2 $142 22. Be3 {[%mdl 64] Skewer, Double Attack} (22. Rxf2 g3 $17 {[%mdl 64] Pin}) 22... Nxh3+ 23. gxh3 Qf6 24. Qxg4 (24. hxg4 $2 {loses.} Qf3 $19) 24... Rh4) 22. Re3 {[%emt 0:05:08] Strongly threatening d6.} Qg6 {[%emt 0:02:28]} 23. Qxg4 {[%emt 0:01:50][%cal Od5d6] Black must now prevent d6!} f5 {[%emt 0:02:29] [#]} 24. Be7+ $1 {[%emt 0:01:26][%mdl 576] Discovered Attack. Artfully played by Moksh Amit Doshi.   Weighted Error Value: White=0.59/Black=0.69} 1-0

[Event "SixDays Budapest March GM-B 2023"]
[Site "Budapest"]
[Date "2023.03.29"]
[Round "9.1"]
[White "Varga, Csaba Zoltan"]
[Black "Vantika Agrawal"]
[Result "0-1"]
[ECO "B20"]
[WhiteElo "2278"]
[BlackElo "2367"]
[Annotator "TA"]
[PlyCount "17"]
[EventDate "2023.03.24"]
[EventType "tourn"]
[EventCountry "HUN"]
[SourceTitle "playchess.com"]
[Source "ChessBase"]
[SourceQuality "1"]
[TimeControl "5400+30"]

{[%evp 9,17,-59,-55,-84,-87,-194,-206,-271,-252,-266]} 1. e4 {[%emt 0:01:20]} c5 {[%emt 0:00:51]} 2. b4 {[%emt 0:00:03]} cxb4 {[%emt 0:01:34]} 3. a3 {[%emt 0:00:04]} e6 {[%emt 0:04:44] [#]} 4. Ne2 $146 {[%emt 0:00:12]} ({Predecessor:} 4. axb4 Bxb4 5. Bb2 Nf6 6. e5 Nd5 7. c4 Ne7 8. Na3 O-O 9. Nc2 Ba5 10. Qh5 Nbc6 11. Nf3 Ng6 {1-0 Dobrov,V (2478)-Kamsky,G (2658) Titled Tuesday intern op 22 Mar Late blitz 2022 (8)}) 4... Nf6 {[%emt 0:03:17]} 5. e5 {[%emt 0:00:07]} Nd5 $1 {[%emt 0:01:39]} 6. d4 {[%emt 0:00:03] B20: Sicilian: Unusual White 2nd moves.} d6 {[%emt 0:02:13][%cal Bd7d6,Bd6e5][%mdl 32]} 7. Nd2 {[%emt 0:00:06]} (7. exd6 $17 Bxd6 8. axb4) 7... dxe5 $19 {[%emt 0:01:21]} 8. axb4 {[%emt 0:00:04]} Bxb4 {[%emt 0:09:29]} 9. Bb2 {[%emt 0:00:16] White did not feel at home in the position after the opening.   Weighted Error Value: White=0.68/Black=0.00 (flawless)} 0-1

[Event "SixDays Budapest March GM-B 2023"]
[Site "Budapest"]
[Date "2023.03.29"]
[Round "9.2"]
[White "Pribelszky, Bence"]
[Black "Moksh Amit Doshi"]
[Result "1-0"]
[ECO "A01"]
[WhiteElo "2380"]
[BlackElo "2388"]
[Annotator "TA"]
[PlyCount "103"]
[EventDate "2023.03.24"]
[EventType "tourn"]
[EventCountry "HUN"]
[SourceTitle "playchess.com"]
[Source "ChessBase"]
[SourceQuality "1"]
[TimeControl "5400+30"]

{[%evp 9,103,-3,-8,-11,-5,0,3,-15,-12,-31,-33,-38,-55,-43,-53,-42,-30,-27,-33,-60,-73,-119,-27,-80,31,0,37,35,131,138,177,177,158,163,192,169,266,256,262,268,336,323,370,364,386,364,538,536,866,814,792,675,725,702,684,679,836,518,823,518,513,508,447,486,496,487,467,347,692,669,1814,1941,1867,1724,1724,1717,1677,1633,1529,1441,1247,1287,1173,1173,1037,618,618,610,29980,29981,29981,29982,29982,29980,29977,5072]} 1. b3 {[%emt 0:07:39]} e5 {[%emt 0:01:51][%cal Be7e5,Be5e4][%mdl 32]} 2. Bb2 {[%emt 0:03:47]} Nc6 {[%emt 0:00:18]} 3. e3 {[%emt 0:00:09]} Nf6 {[%emt 0:00:07]} 4. Bb5 {[%emt 0:00:10]} e4 {[%emt 0:00:11]} 5. d3 {[%emt 0:04:22]} a6 {[%emt 0:06:16]} 6. Bxc6 {[%emt 0:01:09] A01: Nimzowitsch-Larsen Opening.} dxc6 {[%emt 0:03:18]} 7. Ne2 {[%emt 0:07:59]} Bf5 {[%emt 0:08:14][%cal Re4d3,Bc8f5,Bf5g6,Bg6e4][%mdl 32]} 8. Ng3 {[%emt 0:04:40] The position is equal.} Bg6 {[%emt 0:00:54][%cal Re4d3]} 9. dxe4 {[%emt 0:01:20]} Qxd1+ {[%emt 0:00:55]} 10. Kxd1 {[%emt 0:00:02]} O-O-O+ {[%emt 0:03:41]} (10... Bxe4 11. Bxf6 Bxg2 12. Bc3 Bxh1 13. Nxh1 $16) 11. Nd2 {[%emt 0:04:25] [#]} Nxe4 $146 {[%emt 0:04:53]} (11... Bxe4 $2 12. Bxf6 gxf6 13. Ngxe4 $18) ({Predecessor:} 11... Ng4 12. Rf1 Nxh2 13. Re1 h5 14. Ke2 h4 15. Ngf1 Nxf1 16. Rxf1 h3 17. g4 Bb4 {0-1 Olisov,A (2187)-Sharafiev,A (2414) RUS-ch U26 Uljanovsk 2012 (6)}) 12. Ngxe4 {[%emt 0:02:56]} Bxe4 {[%emt 0:00:10]} 13. f3 $1 {[%emt 0:00:20]} Bg6 {[%emt 0:01:10] Hoping for ...Bb4.} 14. a3 {[%emt 0:07:01] Dodges Bb4} Bc5 {[%emt 0:07:09]} 15. Bxg7 {[%emt 0:04:13]} (15. Re1 $142) 15... Rhg8 {[%emt 0:07:01]} (15... Bxe3 $17 16. Bxh8 Rxd2+ 17. Ke1 Rxc2) 16. Bh6 {[%emt 0:00:40] [#]} (16. Bd4 $1 $11 {keeps the balance.} Bxd4 17. exd4) 16... f5 {[%emt 0:09:25]} (16... Be4 $1 $17 17. Kc1 (17. fxe4 $2 Rxg2 18. Kc1 Rdxd2 $19) 17... Rxd2 18. Kxd2 Rxg2+ 19. Kc1 Bxf3) 17. g3 {[%emt 0:17:00][%cal Bg2g3,Bg3f4,Bf4f5][%mdl 32]} Bd6 {[%emt 0:09:08]} (17... Rd5 $5 {[%cal Rg8d8]} 18. c4 Rd7 $11) 18. Ke2 {[%emt 0:06:02]} f4 {[%emt 0:02:16] White now steadily converts the win.} 19. Bxf4 $16 {[%emt 0:00:07]} ({Don't do} 19. gxf4 $6 Bxc2 20. Bg5 Rde8 $14) 19... Bxf4 {[%emt 0:00:06]} 20. gxf4 {[%emt 0:00:07] Threatens to win with e4.} Bxc2 {[%emt 0:00:06] [#] ( -> ...Rg2+)} 21. Rhg1 {[%emt 0:00:57] Prevents Rg2+} Bd3+ {[%emt 0:04:27]} 22. Kf2 {[%emt 0:01:03]} Rge8 {[%emt 0:00:06]} (22... Rg6 {keeps fighting.} 23. Rxg6 hxg6) 23. e4 $18 {[%emt 0:06:56]} a5 {[%emt 0:05:19]} 24. f5 {[%emt 0:08:56]} Rd6 {[%emt 0:01:17]} 25. Ke3 {[%emt 0:03:30]} Bc2 {[%emt 0:03:54]} 26. Rg2 {[%emt 0:02:03]} Red8 {[%emt 0:02:10]} 27. Rc1 {[%emt 0:01:06]} Rd3+ {[%emt 0:00:19]} (27... Bd3 {was worth a try.} 28. Rc3 Bb5) 28. Kf4 {[%emt 0:00:02]} Bxb3 {[%emt 0:01:13]} 29. Nxb3 {[%emt 0:00:02]} Rxb3 {[%emt 0:00:09][%mdl 4096] Endgame KRR-KRR} 30. f6 {[%emt 0:00:06]} Rdd3 {[%emt 0:01:23]} 31. Kf5 {[%emt 0:03:37]} Rxf3+ {[%emt 0:05:12]} 32. Ke6 {[%emt 0:00:04][%cal Rg2g8]} b5 {[%emt 0:00:57]} 33. Rg8+ {[%emt 0:02:36]} Kb7 {[%emt 0:00:06]} 34. f7 {[%emt 0:00:03][%cal Og8g3] Rg3! would be deadly.} Rbe3 {[%emt 0:00:07]} 35. e5 {[%emt 0:00:15]} (35. f8=R $2 {gets mated.} Rxe4+ 36. Kd7 Rd3#) 35... Rxf7 {[%emt 0:00:18]} 36. Kxf7 {[%emt 0:00:02]} Rxe5 {[%emt 0:00:10]} 37. Rg2 {[%emt 0:02:03]} c5 {[%emt 0:00:28]} 38. Kf6 {[%emt 0:00:41]} Rh5 {[%emt 0:00:06]} (38... Rd5 39. Rg7 h6) 39. Rg5 {[%emt 0:00:51]} Rxh2 {[%emt 0:01:13]} 40. Rgxc5 {[%emt 0:00:13]} c6 {[%emt 0:00:03]} 41. Kg7 {[%emt 0:00:29]} (41. Rxc6 $2 {loses.} Rh6+ 42. Ke5 Rxc6 $19) 41... Rg2+ {[%emt 0:02:57]} 42. Kxh7 {[%emt 0:00:08]} Rh2+ {[%emt 0:00:03]} 43. Kg6 {[%emt 0:00:24]} Rg2+ {[%emt 0:00:03]} 44. Kf7 {[%emt 0:00:24]} Rf2+ {[%emt 0:00:04]} 45. Ke6 {[%emt 0:00:07]} Re2+ {[%emt 0:00:03]} 46. Kf5 {[%emt 0:00:53][%cal Oc5c2] R5c2! would kill now.} Rf2+ {[%emt 0:00:04]} 47. Ke5 {[%emt 0:00:17]} Re2+ {[%emt 0:00:05]} 48. Kd4 {[%emt 0:00:09]} Re6 {[%emt 0:00:04]} 49. Re5 {[%emt 0:00:27] White mates.} Rh6 {[%emt 0:00:20]} 50. Kc5 {[%emt 0:00:09]} a4 {[%emt 0:00:05]} 51. Re7+ {[%emt 0:00:41]} Ka6 {[%emt 0:00:07]} 52. Rc7 {[%emt 0:00:05] Weighted Error Value: White=0.30/Black=0.47} (52. Rc3 $142 Rh4 53. Re6 Kb7 54. Re7+ Ka6 55. Kxc6 b4 56. Rce3 bxa3 57. R3e6) 1-0